bitfinex/quotes_SOLUSD_20241116
["timestamp","ask_amount","ask_price","bid_price","bid_amount"]
[1731774398784,23.776884,215.25,215.2,9.12911015]
[1731774398990,23.776884,215.26,215.2,9.12911015]
[1731774399293,23.776884,215.26,215.21,9.12911015]
[1731774399583,23.776884,215.28,215.21,9.12911015]
[1731774399792,23.776884,215.28,215.22,4.6464]
[1731774399984,23.776884,215.27,215.22,4.6464]
[1731774400791,23.776884,215.27,215.22,25.39151015]
[1731774401085,23.776884,215.28,215.22,25.39151015]
[1731774402581,9.12911015,215.26,215.22,16.2624]
[1731774402790,32.90599415,215.24,215.2,4.6467]
[1731774403871,23.776884,215.24,215.18,16.265]
[1731774404580,32.90599415,215.24,215.18,16.265]
[1731774404780,38.02008806,215.24,215.18,16.265]
[1731774405806,38.02008806,215.24,215.11,29.16421927]
[1731774405807,0.1,215.12,215.06,14.32516224]
[1731774405974,14.24320406,215.07,214.96,11.6297]
[1731774406174,14.24320406,215.0,214.91,4.653]
[1731774406368,14.24320406,214.98,214.91,4.653]
[1731774406679,14.24320406,214.98,214.91,11.6325]
[1731774407675,7.20838935,215.08,214.97,14.24320406]
[1731774407884,38.02008806,215.08,214.99,14.24320406]
[1731774408181,38.02008806,215.08,215.01,14.24320406]
[1731774408385,23.776884,215.09,215.02,14.24320406]
[1731774408788,23.776884,215.1,215.05,14.24320406]
[1731774409005,14.24320406,215.13,215.06,14.24320406]
[1731774409293,14.24320406,215.07,214.98,14.02620234]
[1731774409594,14.24320406,215.01,214.95,11.6306]
[1731774410182,23.776884,215.0,214.95,11.6306]
[1731774410499,38.02008806,215.0,214.95,11.6306]
[1731774411099,14.24320406,214.99,214.95,11.6306]
[1731774411402,23.776884,215.0,214.95,16.2828]
[1731774411892,14.24320406,215.0,214.95,16.2828]
[1731774413100,14.24320406,215.03,214.95,30.52600406]
[1731774413298,23.776884,215.02,214.95,30.52600406]
[1731774413505,14.24320406,215.01,214.95,16.2828]
[1731774414188,14.24320406,215.0,214.95,16.2828]
[1731774414391,14.24320406,214.98,214.95,11.6306]
[1731774414709,14.24320406,214.97,214.93,4.6525]
[1731774415693,14.24320406,214.98,214.91,30.52900406]
[1731774415907,28.427484,215.03,214.91,16.2858]
[1731774415908,14.24320406,214.97,214.91,16.2858]
[1731774416602,14.24320406,214.96,214.91,16.2858]
[1731774417989,23.776884,215.03,214.91,11.6327]
[1731774417990,14.24320406,214.94,214.91,11.6327]
[1731774418308,4.6507,215.02,214.91,16.2858]
[1731774418484,14.24320406,214.96,214.91,16.2858]
[1731774418805,14.24320406,214.94,214.91,16.2858]
[1731774419390,14.24320406,214.92,214.9,0.5267188]
[1731774419783,14.24320406,214.91,214.9,0.5267188]
[1731774423316,38.02008806,214.91,214.9,0.5267188]
[1731774428321,23.776884,214.9,214.89,14.83129774]
[1731774428489,38.02008806,214.9,214.89,14.83129774]
[1731774429705,7.20838935,215.09,214.89,14.83129774]
[1731774429706,14.24320406,214.95,214.89,31.11849774]
[1731774429889,14.24320406,214.95,214.89,45.3617018]
[1731774432794,38.02008806,214.94,214.89,31.11849774]
[1731774434191,14.24320406,214.93,214.89,31.11849774]
[1731774435699,38.02008806,214.94,214.89,31.11849774]
[1731774435900,14.24320406,214.93,214.89,31.11849774]
[1731774437202,38.02008806,214.94,214.89,31.11849774]
[1731774437790,14.24320406,214.98,214.91,14.24320406]
[1731774437995,160.9,215.03,214.93,14.24320406]
[1731774437996,14.24320406,215.0,214.93,14.24320406]
[1731774438614,14.24320406,215.02,214.95,14.24320406]
[1731774438812,14.24320406,215.04,214.97,14.24320406]
[1731774439313,14.24320406,215.08,215.02,14.24320406]
[1731774439613,14.24320406,215.1,215.03,30.51990406]
[1731774439916,14.24320406,215.11,215.04,14.24320406]
[1731774440993,14.24320406,215.09,215.05,4.65]
[1731774441894,14.24320406,215.1,215.03,25.86940406]
[1731774442213,23.776884,215.12,215.05,14.24320406]
[1731774442523,38.02008806,215.11,215.04,14.24320406]
[1731774443115,23.776884,215.12,215.07,14.24320406]
[1731774443304,14.24320406,215.16,215.08,14.24320406]
[1731774443619,14.24320406,215.16,215.09,14.24320406]
[1731774443992,14.24320406,215.17,215.1,14.24320406]
[1731774444203,14.24320406,215.18,215.1,14.24320406]
[1731774444412,14.24320406,215.17,215.1,14.24320406]
[1731774444789,14.24320406,215.19,215.11,14.24320406]
[1731774444992,14.24320406,215.19,215.12,4.6485]
[1731774445197,14.24320406,215.18,215.12,4.6485]
[1731774446596,14.24320406,215.18,215.1,11.6219]
[1731774446597,14.24320406,215.21,215.14,14.24320406]
[1731774446797,14.24320406,215.26,215.19,14.24320406]
[1731774446997,13.74320406,215.26,215.19,14.24320406]
[1731774447921,13.74320406,215.26,215.19,18.89000406]
[1731774448216,23.776884,215.25,215.19,18.89000406]
[1731774448425,14.24320406,215.22,215.16,11.6189]
[1731774448595,23.776884,215.23,215.16,11.6189]
[1731774448596,14.24320406,215.19,215.16,11.6189]
[1731774449512,23.776884,215.18,215.14,4.648]
[1731774450600,23.776884,215.2,215.15,14.24320406]
[1731774450812,14.24320406,215.2,215.14,4.648]
[1731774451017,23.776884,215.19,215.14,18.89120406]
[1731774451601,23.776884,215.21,215.15,14.24320406]
[1731774451802,4.646,215.24,215.15,18.89090406]
[1731774451803,38.02008806,215.23,215.15,18.89090406]
[1731774452021,38.02008806,215.23,215.15,30.51070406]
[1731774452301,14.24320406,215.25,215.18,14.24320406]
[1731774452701,14.24320406,215.29,215.22,14.24320406]
[1731774452923,14.24320406,215.31,215.24,14.24320406]
[1731774453906,14.24320406,215.28,215.22,16.2618]
[1731774454304,4.6446,215.3,215.22,30.50500406]
[1731774454305,14.24320406,215.29,215.22,30.50500406]
[1731774454520,18.88780406,215.3,215.22,30.50500406]
[1731774455019,38.02008806,215.28,215.22,16.2618]
[1731774455227,23.776884,215.28,215.22,16.2618]
[1731774455435,38.02008806,215.28,215.22,16.2618]
[1731774456999,14.24320406,215.27,215.22,16.2618]
[1731774457532,38.02008806,215.24,215.17,25.86140406]
[1731774457826,14.24320406,215.18,215.07,23.3482]
[1731774458003,14.24320406,215.18,215.11,14.24320406]
[1731774458212,14.24320406,215.19,215.12,14.24320406]
[1731774459019,23.776884,215.19,215.13,14.24320406]
[1731774459632,23.776884,215.21,215.14,30.51160406]
[1731774460319,23.776884,215.21,215.16,14.24320406]
[1731774460516,14.24320406,215.26,215.19,14.24320406]
[1731774460710,14.24320406,215.28,215.2,14.24320406]
[1731774460910,14.24320406,215.28,215.21,14.24320406]
[1731774461619,14.24320406,215.26,215.17,16.2661]
[1731774461818,14.24320406,215.26,215.19,14.24320406]
[1731774462321,14.24320406,215.27,215.19,14.24320406]
[1731774462931,23.776884,215.26,215.2,16.2639]
[1731774463140,14.24320406,215.23,215.16,14.24320406]
[1731774463317,14.24320406,215.23,215.16,25.86230406]
[1731774463732,14.24320406,215.22,215.16,11.6191]
[1731774464043,14.24320406,215.21,215.16,11.6191]
[1731774464229,23.776884,215.2,215.16,11.6191]
[1731774464533,38.02008806,215.17,215.11,11.6215]
[1731774464833,22.80392029,215.18,215.11,22.80392029]
[1731774465130,46.58080429,215.18,215.11,22.80392029]
[1731774465523,23.776884,215.18,215.11,22.80392029]
[1731774465727,23.776884,215.2,215.13,22.80392029]
[1731774466030,22.80392029,215.18,215.1,22.80392029]
[1731774466342,23.776884,215.14,215.09,22.80392029]
[1731774466672,23.776884,215.14,215.08,22.80392029]
[1731774467013,23.776884,215.15,215.08,27.45322029]
[1731774467948,46.58080429,215.12,215.06,11.6246]
[1731774468147,22.80392029,215.12,215.06,11.6246]
[1731774468439,23.776884,215.11,215.06,11.6246]
[1731774469330,23.776884,215.12,215.07,22.80392029]
[1731774469955,23.776884,215.14,215.07,22.80392029]
[1731774470111,23.776884,215.14,215.08,22.80392029]
[1731774470520,23.776884,215.16,215.1,22.80392029]
[1731774470854,23.776884,215.16,215.09,22.80392029]
[1731774471017,46.58080429,215.16,215.08,22.80392029]
[1731774472339,46.58080429,215.16,215.09,4.6492]
[1731774472842,46.58080429,215.16,215.09,16.2722]
[1731774473019,46.58080429,215.16,215.1,22.80392029]
[1731774473653,22.80392029,215.19,215.11,22.80392029]
[1731774473826,22.80392029,215.21,215.13,22.80392029]
[1731774474039,22.80392029,215.2,215.13,22.80392029]
[1731774474425,4.6453,215.27,215.15,22.80392029]
[1731774474625,22.80392029,215.22,215.14,22.80392029]
[1731774474825,22.80392029,215.2,215.13,22.80392029]
[1731774475535,23.776884,215.19,215.13,22.80392029]
[1731774475938,23.776884,215.19,215.08,16.2729]
[1731774475939,22.80392029,215.17,215.08,16.2729]
[1731774476139,46.58080429,215.14,215.08,16.2729]
[1731774478533,46.58080429,215.14,215.07,22.80392029]
[1731774478738,23.776884,215.15,215.08,22.80392029]
[1731774479156,23.776884,215.15,215.09,22.80392029]
[1731774479838,160.9,215.25,215.12,22.80392029]
[1731774480022,22.80392029,215.2,215.13,22.80392029]
[1731774480222,22.80392029,215.19,215.12,22.80392029]
[1731774480443,22.80392029,215.18,215.11,22.80392029]
[1731774480645,22.80392029,215.18,215.12,4.6485]
[1731774481048,22.80392029,215.18,215.12,16.2699]
[1731774481234,22.80392029,215.16,215.12,16.2699]
[1731774481437,22.80392029,215.17,215.12,16.2699]
[1731774481636,22.80392029,215.18,215.12,16.2699]
[1731774481850,22.80392029,215.21,215.13,22.80392029]
[1731774482551,22.80392029,215.17,215.12,16.2699]
[1731774482744,22.80392029,215.17,215.12,11.6214]
[1731774482952,22.80392029,215.18,215.12,11.6214]
[1731774483327,22.80392029,215.19,215.12,34.42532029]
[1731774483730,22.80392029,215.18,215.12,11.6214]
[1731774484054,22.80392029,215.17,215.1,27.45292029]
[1731774484233,22.80392029,215.16,215.1,4.649]
[1731774485047,4.6476,215.17,215.1,39.07542029]
[1731774486727,4.6476,215.17,215.1,14.25162355]
[1731774487254,18.89872355,215.19,215.12,14.25162355]
[1731774487654,14.25162355,215.19,215.12,14.25162355]
[1731774487951,18.89862355,215.19,215.12,14.25162355]
[1731774488939,18.89862355,215.19,215.11,14.25162355]
[1731774489539,14.25162355,215.16,215.08,30.52452355]
[1731774489755,14.25162355,215.14,215.08,16.2729]
[1731774490045,14.25162355,215.15,215.08,16.2729]
[1731774490254,14.25162355,215.15,215.08,30.52452355]
[1731774490555,23.776884,215.18,215.12,14.25162355]
[1731774490854,14.25162355,215.17,215.11,4.6487]
[1731774491257,38.02850755,215.18,215.11,16.2706]
[1731774491434,38.02850755,215.18,215.11,30.52222355]
[1731774492856,18.89872355,215.19,215.11,30.52222355]
[1731774493237,14.25162355,215.19,215.11,30.52222355]
[1731774494164,14.25162355,215.2,215.12,14.25162355]
[1731774494961,14.25162355,215.19,215.12,14.25162355]
[1731774495456,14.25162355,215.19,215.13,16.2691]
[1731774495934,14.25162355,215.2,215.13,16.2691]
[1731774496857,14.25162355,215.18,215.13,16.2691]
[1731774497059,14.25162355,215.19,215.13,16.2691]
[1731774498157,14.25162355,215.2,215.13,30.52072355]
[1731774499134,18.89832355,215.21,215.14,14.25162355]
[1731774499534,4.6467,215.21,215.15,14.25162355]
[1731774501043,18.89832355,215.21,215.14,14.25162355]
[1731774501243,14.25162355,215.2,215.13,25.87202355]
[1731774501644,14.25162355,215.2,215.13,11.6204]
[1731774502250,14.25162355,215.18,215.13,16.2687]
[1731774502647,14.25162355,215.19,215.13,16.2687]
[1731774503861,14.25162355,215.2,215.13,16.2687]
[1731774505361,18.89842355,215.2,215.13,30.52032355]
[1731774506463,14.25162355,215.18,215.1,14.25162355]
[1731774507452,14.25162355,215.18,215.11,16.2706]
[1731774507753,18.89882355,215.18,215.11,16.2706]
[1731774507948,14.25162355,215.16,215.11,16.2706]
[1731774508765,14.25162355,215.17,215.11,16.2706]
[1731774509354,14.25162355,215.17,215.11,11.6219]
[1731774510744,14.25162355,215.18,215.1,14.25162355]
[1731774510966,14.25162355,215.21,215.13,14.25162355]
[1731774511148,14.25162355,215.22,215.15,14.25162355]
[1731774511545,14.25162355,215.22,215.14,14.25162355]
[1731774512079,18.89812355,215.22,215.15,4.6479]
[1731774512751,14.25162355,215.21,215.15,4.6479]
[1731774513869,18.89812355,215.22,215.15,14.25162355]
[1731774514052,14.25162355,215.21,215.14,14.25162355]
[1731774514375,23.776884,215.23,215.17,14.25162355]
[1731774514869,7.20227101,215.28,215.19,14.25162355]
[1731774515059,18.89672355,215.28,215.21,14.25162355]
[1731774515451,14.25162355,215.27,215.2,14.25162355]
[1731774515650,14.25162355,215.27,215.21,4.6466]
[1731774515952,18.89672355,215.28,215.21,18.89822355]
[1731774517572,14.25162355,215.28,215.21,30.51472355]
[1731774519047,23.776884,215.28,215.22,14.25162355]
[1731774520075,23.776884,215.28,215.22,18.89782355]
[1731774521678,42.67360755,215.28,215.21,14.25162355]
[1731774522955,42.67360755,215.28,215.22,4.6464]
[1731774524287,14.25162355,215.27,215.22,4.6464]
[1731774524659,42.67360755,215.28,215.22,4.6464]
[1731774524978,42.67360755,215.28,215.21,14.25162355]
[1731774524979,32.88910613,215.28,215.21,9.11222213]
[1731774525393,23.776884,215.28,215.22,9.11222213]
[1731774525675,32.88910613,215.28,215.22,9.11222213]
[1731774526475,32.88910613,215.28,215.22,13.75842213]
[1731774528481,4.6449,215.29,215.22,13.75842213]
[1731774528482,9.11222213,215.29,215.22,25.37442213]
[1731774528786,9.11222213,215.3,215.23,9.11222213]
[1731774528964,23.776884,215.29,215.23,9.11222213]
[1731774529158,13.75682213,215.31,215.24,9.11222213]
[1731774529381,23.776884,215.3,215.24,9.11222213]
[1731774530067,32.88910613,215.3,215.23,9.11222213]
[1731774530267,32.88910613,215.3,215.24,4.6459]
[1731774531073,9.11222213,215.3,215.24,4.6459]
[1731774532386,13.75682213,215.3,215.24,4.6459]
[1731774533084,9.11222213,215.29,215.24,4.6459]
[1731774533489,4.6446,215.3,215.23,13.75832213]
[1731774533693,13.75682213,215.3,215.23,25.37372213]
[1731774534369,4.6446,215.3,215.24,9.11222213]
[1731774535380,4.6446,215.3,215.24,13.75812213]
[1731774535774,9.11222213,215.29,215.24,4.6459]
[1731774536297,4.6446,215.3,215.24,9.11222213]
[1731774536875,13.75682213,215.3,215.23,9.11222213]
[1731774537569,13.75682213,215.3,215.24,4.6459]
[1731774537768,4.6446,215.3,215.24,13.75812213]
[1731774540802,4.6431,215.37,215.25,9.11222213]
[1731774540971,9.11222213,215.36,215.29,9.11222213]
[1731774541478,9.11222213,215.35,215.28,9.11222213]
[1731774541675,9.11222213,215.36,215.29,9.11222213]
[1731774542066,4.6436,215.35,215.29,9.11222213]
[1731774543383,13.75582213,215.35,215.28,9.11222213]
[1731774543695,9.11222213,215.32,215.25,9.11222213]
[1731774544079,9.11222213,215.33,215.26,9.11222213]
[1731774544585,9.11222213,215.34,215.27,9.11222213]
[1731774545101,4.6423,215.41,215.32,9.11222213]
[1731774545284,9.11222213,215.42,215.34,9.11222213]
[1731774545592,9.11222213,215.42,215.35,9.11222213]
[1731774545788,9.11222213,215.41,215.34,9.11222213]
[1731774545998,0.5267188,215.43,215.35,9.11222213]
[1731774546167,9.11222213,215.42,215.35,9.11222213]
[1731774547185,9.11222213,215.42,215.36,4.6433]
[1731774547601,9.63894093,215.43,215.36,13.75552213]
[1731774548473,9.63894093,215.43,215.36,9.11222213]
[1731774549271,0.5267188,215.43,215.36,9.11222213]
[1731774549496,0.5267188,215.43,215.4,9.11222213]
[1731774550005,0.5267188,215.43,215.42,9.11222213]
[1731774550702,0.5267188,215.43,215.42,13.75422213]
[1731774551383,0.5267188,215.43,215.42,4.642]
[1731774551786,0.5267188,215.43,215.41,11.6056]
[1731774552292,0.5267188,215.43,215.41,16.2479]
[1731774552484,0.5267188,215.43,215.41,11.6056]
[1731774553295,0.5267188,215.43,215.39,4.6427]
[1731774556499,0.5267188,215.43,215.38,20.71952213]
[1731774558404,0.5267188,215.43,215.38,25.36242213]
[1731774559494,9.63894093,215.43,215.38,11.6073]
[1731774559692,9.11222213,215.39,215.35,4.6435]
[1731774559898,9.11222213,215.38,215.33,11.6096]
[1731774560794,9.11222213,215.38,215.33,16.2534]
[1731774561189,9.11222213,215.39,215.33,16.2534]
[1731774562208,9.11222213,215.4,215.33,9.11222213]
[1731774562487,9.11222213,215.42,215.34,9.11222213]
[1731774563098,0.5267188,215.43,215.35,9.11222213]
[1731774563297,0.5267188,215.43,215.38,9.11222213]
[1731774564081,0.5267188,215.43,215.39,4.6427]
[1731774567010,0.5267188,215.43,215.38,9.11222213]
[1731774567791,0.0267188,215.43,215.38,9.11222213]
[1731774568199,0.0267188,215.43,215.39,4.6427]
[1731774568598,0.0267188,215.43,215.39,16.2495]
[1731774570713,8.63894093,215.45,215.39,16.2495]
[1731774573319,9.11222213,215.4,215.35,11.6087]
[1731774573615,8.61222213,215.39,215.35,11.6087]
[1731774573920,9.11222213,215.4,215.35,11.6087]
[1731774574803,9.11222213,215.37,215.31,16.2554]
[1731774575010,4.6418,215.43,215.31,16.2554]
[1731774575011,9.11222213,215.36,215.31,16.2554]
[1731774575823,9.11222213,215.36,215.31,11.611]
[1731774576920,9.11222213,215.35,215.31,11.611]
[1731774577994,9.11222213,215.34,215.27,32.33882213]
[1731774578198,9.11222213,215.32,215.25,0.12549]
[1731774578420,9.11222213,215.32,215.24,16.2608]
[1731774578617,9.11222213,215.31,215.24,25.37302213]
[1731774579703,9.11222213,215.31,215.25,0.12549]
[1731774580002,9.11222213,215.29,215.24,16.2608]
[1731774580213,9.11222213,215.3,215.24,16.2608]
[1731774581426,9.11222213,215.31,215.24,25.37302213]
[1731774581729,23.776884,215.36,215.26,9.11222213]
[1731774582020,9.11222213,215.33,215.26,9.11222213]
[1731774582422,9.11222213,215.34,215.27,9.11222213]
[1731774582624,9.11222213,215.35,215.28,9.11222213]
[1731774582919,9.11222213,215.35,215.29,4.6448]
[1731774583094,9.11222213,215.36,215.29,25.36922213]
[1731774583521,9.11222213,215.36,215.29,16.257]
[1731774583720,9.11222213,215.36,215.29,25.36922213]
[1731774586025,9.11222213,215.38,215.31,9.11222213]
[1731774586203,4.6416,215.44,215.33,9.11222213]
[1731774586524,9.11222213,215.41,215.34,9.11222213]
[1731774586902,9.11222213,215.4,215.33,9.11222213]
[1731774587604,9.11222213,215.4,215.34,4.6438]
[1731774588110,4.6423,215.41,215.34,4.6438]
[1731774588302,9.11222213,215.4,215.34,4.6438]
[1731774588629,9.11222213,215.35,215.32,16.2542]
[1731774588925,9.11222213,215.35,215.32,11.6102]
[1731774589121,9.11222213,215.36,215.32,16.2544]
[1731774589318,9.11222213,215.36,215.32,11.6102]
[1731774589525,9.11222213,215.35,215.3,4.6446]
[1731774589828,9.11222213,215.34,215.28,16.2575]
[1731774590803,9.11222213,215.35,215.28,9.11222213]
[1731774591307,9.11222213,215.36,215.29,9.11222213]
[1731774592036,9.11222213,215.36,215.3,4.6446]
[1731774593541,9.11222213,215.37,215.3,25.36852213]
[1731774593828,28.419384,215.4,215.31,9.11222213]
[1731774594013,9.11222213,215.39,215.31,9.11222213]
[1731774594617,8.61222213,215.39,215.31,9.11222213]
[1731774595010,8.61222213,215.39,215.32,4.6442]
[1731774596315,160.9,215.45,215.32,25.36702213]
[1731774596316,4.6422,215.42,215.32,25.36702213]
[1731774596519,9.11222213,215.4,215.33,9.11222213]
[1731774597124,9.11222213,215.4,215.34,16.2533]
[1731774598329,4.6419,215.43,215.34,25.36552213]
[1731774598538,9.11222213,215.41,215.34,25.36552213]
[1731774598712,165.5416,215.45,215.36,9.11222213]
[1731774599032,9.11222213,215.43,215.36,9.11222213]
[1731774599238,9.11222213,215.43,215.37,4.6431]
[1731774599618,9.11222213,215.45,215.38,9.11222213]
[1731774599931,9.11222213,215.44,215.37,25.36322213]
[1731774600331,9.11222213,215.45,215.38,9.11222213]
[1731774600722,9.11222213,215.45,215.39,4.6427]
[1731774602512,9.11222213,215.44,215.39,4.6427]
[1731774604128,9.11222213,215.45,215.39,4.6427]
[1731774605642,9.11222213,215.44,215.39,4.6427]
[1731774606220,9.11222213,215.45,215.39,4.6427]
[1731774606639,9.11222213,215.44,215.39,4.6427]
[1731774607136,9.11222213,215.44,215.38,11.6073]
[1731774607137,9.11222213,215.41,215.38,11.6073]
[1731774608251,9.11222213,215.41,215.38,16.2502]
[1731774608932,9.11222213,215.41,215.38,11.6073]
[1731774609268,36.44888852,215.49,215.38,11.6073]
[1731774609269,9.11222213,215.4,215.38,11.6073]
[1731774610347,9.11222213,215.39,215.3,16.2563]
[1731774610541,9.11222213,215.36,215.3,16.2563]
[1731774610843,9.11222213,215.37,215.3,25.36852213]
[1731774611543,160.9,215.45,215.21,101.51116789]
[1731774611544,9.11222213,215.31,215.25,11.6138]
[1731774611746,9.11222213,215.3,215.26,4.6453]
[1731774612247,9.11222213,215.3,215.26,16.2591]
[1731774612633,9.11222213,215.28,215.26,11.6138]
[1731774612932,9.11222213,215.28,215.21,9.11222213]
[1731774613137,9.11222213,215.28,215.22,16.2624]
[1731774613720,9.11222213,215.26,215.22,16.2624]
[1731774614347,9.11222213,215.25,215.22,16.2624]
[1731774614848,9.11222213,215.25,215.22,11.616]
[1731774615034,9.11222213,215.26,215.22,11.616]
[1731774616132,9.11222213,215.24,215.22,11.616]
[1731774616934,9.11222213,215.23,215.22,11.616]
[1731774617351,9.11222213,215.23,215.17,39.5027]
[1731774617733,9.11222213,215.21,215.17,16.2661]
[1731774618836,9.11222213,215.21,215.17,11.6187]
[1731774619358,9.11222213,215.19,215.17,11.6187]
[1731774619553,32.88910613,215.18,215.03,46.61812023]
[1731774619851,32.88910613,215.18,215.06,11.6243]
[1731774619852,9.11222213,215.11,215.06,11.6243]
[1731774620038,8.20102213,215.11,215.06,11.6243]
[1731774620228,9.11222213,215.12,215.06,11.6243]
[1731774620736,14.25408646,215.16,215.09,14.25408646]
[1731774621049,14.25408646,215.21,215.14,14.25408646]
[1731774622033,14.25408646,215.21,215.15,4.6479]
[1731774622451,14.25408646,215.2,215.15,16.2677]
[1731774622633,14.25408646,215.19,215.15,16.2677]
[1731774623165,14.25408646,215.17,215.13,4.6483]
[1731774623341,14.25408646,215.16,215.13,4.6483]
[1731774623851,14.25408646,215.17,215.13,4.6483]
[1731774624537,14.25408646,215.15,215.13,4.6483]
[1731774624749,14.25408646,215.15,215.12,11.6214]
[1731774625060,14.25408646,215.13,215.07,31.6237]
[1731774625556,14.25408646,215.1,215.07,11.6237]
[1731774626335,14.25408646,215.08,215.02,23.2532]
[1731774626540,14.25408646,215.07,215.02,23.2532]
[1731774627247,14.25408646,215.1,215.02,37.50728646]
[1731774627445,14.25408646,215.09,215.02,53.78478646]
[1731774627947,14.25408646,215.08,215.02,39.5307]
[1731774629161,14.25408646,215.07,215.02,23.2532]
[1731774629875,14.25408646,215.09,215.02,37.50728646]
[1731774630045,38.03097046,215.08,215.02,23.2532]
[1731774630363,38.03097046,215.08,215.02,39.5307]
[1731774630946,14.25408646,215.07,215.02,39.5307]
[1731774632070,14.25408646,215.1,215.03,14.25408646]
[1731774632248,23.776884,215.09,215.03,14.25408646]
[1731774632572,14.25408646,215.13,215.06,14.25408646]
[1731774632773,14.25408646,215.11,214.97,0.1]
[1731774632942,14.25408646,215.08,215.02,20.0]
[1731774633142,14.25408646,215.08,215.02,34.25408646]
[1731774633362,14.25408646,215.1,215.03,14.25408646]
[1731774633543,23.776884,215.09,215.03,14.25408646]
[1731774633744,38.03097046,215.09,215.02,14.25408646]
[1731774633968,38.03097046,215.09,215.03,16.2767]
[1731774634467,14.25408646,215.07,215.03,16.2767]
[1731774634766,14.25408646,215.04,215.03,16.2767]
[1731774635080,14.25408646,215.06,214.99,14.25408646]
[1731774635439,14.25408646,215.07,215.0,14.25408646]
[1731774636264,14.25408646,215.07,215.01,16.2782]
[1731774637976,14.25408646,215.06,215.01,11.6273]
[1731774638467,14.25408646,215.07,215.01,11.6273]
[1731774639297,14.25408646,215.08,215.01,30.53228646]
[1731774639453,14.25408646,215.07,215.01,16.2782]
[1731774639662,28.425684,215.11,215.01,16.2782]
[1731774639663,14.25408646,215.06,215.01,16.2782]
[1731774641660,28.425684,215.11,215.02,14.25408646]
[1731774641875,14.25408646,215.07,215.01,11.6273]
[1731774642169,28.425684,215.11,215.01,11.6273]
[1731774642170,14.25408646,215.06,215.01,11.6273]
[1731774646055,14.25408646,215.05,215.01,11.6273]
[1731774646255,14.25408646,215.06,215.01,11.6273]
[1731774646460,14.25408646,215.07,215.01,11.6273]
[1731774647179,14.25408646,215.08,215.01,25.88138646]
[1731774647959,38.03097046,215.11,215.04,14.25408646]
[1731774648172,14.25408646,215.14,215.08,14.25408646]
[1731774648387,14.25408646,215.15,215.09,14.25408646]
[1731774648558,14.25408646,215.14,215.08,14.25408646]
[1731774649160,14.25408646,215.13,215.06,14.25408646]
[1731774649559,14.25408646,215.13,215.07,14.25408646]
[1731774650153,0.1,215.19,215.06,16.2744]
[1731774650154,14.25408646,215.1,215.06,16.2744]
[1731774650373,14.25408646,215.11,215.06,16.2744]
[1731774651381,14.25408646,215.12,215.06,16.2744]
[1731774651585,14.25408646,215.12,215.06,30.52848646]
[1731774652383,14.25408646,215.13,215.06,30.52848646]
[1731774652562,23.776884,215.12,215.06,30.52848646]
[1731774652763,38.03097046,215.12,215.06,30.52848646]
[1731774653782,23.776884,215.12,215.06,30.52848646]
[1731774654485,23.776884,215.13,215.08,14.25408646]
[1731774655093,23.776884,215.14,215.08,14.25408646]
[1731774657090,38.03097046,215.14,215.09,16.2722]
[1731774657269,14.25408646,215.23,215.13,14.25408646]
[1731774657471,4.6449,215.29,215.18,14.25408646]
[1731774657669,14.25408646,215.25,215.18,14.25408646]
[1731774658564,14.25408646,215.25,215.19,16.2646]
[1731774658970,23.776884,215.24,215.19,16.2646]
[1731774659386,23.776884,215.24,215.19,30.51868646]
[1731774659571,23.776884,215.25,215.19,30.51868646]
[1731774661287,165.5436,215.35,215.24,14.25408646]
[1731774661594,160.9,215.42,215.31,14.25408646]
[1731774661768,18.570987,215.43,215.33,14.25408646]
[1731774661769,14.25408646,215.4,215.33,14.25408646]
[1731774662501,4.6419,215.43,215.32,14.25408646]
[1731774662502,14.25408646,215.39,215.32,14.25408646]
[1731774662800,4.6415,215.45,215.35,14.25408646]
[1731774662980,14.25408646,215.43,215.36,14.25408646]
[1731774663171,14.25408646,215.43,215.27,14.25408646]
[1731774663172,14.25408646,215.44,215.38,16.2502]
[1731774664299,4.6407,215.49,215.4,4.6425]
[1731774664477,38.03097046,215.44,215.4,4.6425]
[1731774665570,38.03097046,215.44,215.38,16.2502]
[1731774666369,23.776884,215.44,215.39,14.25408646]
[1731774666573,38.03097046,215.45,215.38,30.50428646]
[1731774666791,14.25408646,215.44,215.38,16.2502]
[1731774671604,14.25408646,215.43,215.38,16.2502]
[1731774673098,14.25408646,215.43,215.36,14.25408646]
[1731774674083,14.25408646,215.43,215.38,16.2502]
[1731774675891,14.25408646,215.39,215.34,4.6436]
[1731774676095,14.25408646,215.36,215.33,11.6097]
[1731774676398,0.1,215.47,215.33,11.6097]
[1731774676399,23.776884,215.42,215.33,11.6097]